[Event "Titled Tuesday Blitz May 16 Early 2023"]
[White "Dino_Ballecer"]
[Black "Roberz12"]
[WhiteElo "2514"]
[BlackElo "2348"]
[Result "1-0"]
[Round "04"]
[TimeControl "180+2"]
[Date "2023.05.16"]
[WhiteClock "0:00:08"]
[BlackClock "0:00:06"]

1. e4 {[%clk 0:02:59]}  c5 {[%clk 0:02:59]} 2. Nf3 {[%clk 0:02:59]}  d6 {[%clk 0:02:54]} 3. Bb5+ {[%clk 0:02:58]}  Nd7 {[%clk 0:02:52]} 4. d4 {[%clk 0:02:57]}  cxd4 {[%clk 0:02:50]} 5. Qxd4 {[%clk 0:02:58]}  a6 {[%clk 0:02:46]} 6. Bxd7+ {[%clk 0:02:58]}  Bxd7 {[%clk 0:02:45]} 7. c4 {[%clk 0:02:59]}  Bc6 {[%clk 0:02:43]} 8. Nc3 {[%clk 0:02:58]}  Nf6 {[%clk 0:02:40]} 9. Bg5 {[%clk 0:02:58]}  h6 {[%clk 0:02:33]} 10. Bxf6 {[%clk 0:02:57]}  gxf6 {[%clk 0:02:34]} 11. O-O {[%clk 0:02:55]}  Rg8 {[%clk 0:02:34]} 12. Rfd1 {[%clk 0:02:54]}  Qd7 {[%clk 0:02:34]} 13. Rd3 {[%clk 0:02:45]}  Bg7 {[%clk 0:02:22]} 14. Rad1 {[%clk 0:02:36]}  f5 {[%clk 0:02:19]} 15. e5 {[%clk 0:02:30]}  Bxf3 {[%clk 0:01:53]} 16. Rxf3 {[%clk 0:02:30]}  Bxe5 {[%clk 0:01:53]} 17. Qb6 {[%clk 0:02:30]}  Qc6 {[%clk 0:01:47]} 18. Qxc6+ {[%clk 0:02:30]}  bxc6 {[%clk 0:01:47]} 19. Rxf5 {[%clk 0:02:28]}  Rb8 {[%clk 0:01:47]} 20. Na4 {[%clk 0:02:27]}  Rg4 {[%clk 0:01:40]} 21. b3 {[%clk 0:02:23]}  Rg5 {[%clk 0:01:27]} 22. Rf3 {[%clk 0:02:16]}  f5 {[%clk 0:01:11]} 23. h4 {[%clk 0:02:01]}  Rh5 {[%clk 0:01:10]} 24. g3 {[%clk 0:01:46]}  Kf7 {[%clk 0:01:01]} 25. Kg2 {[%clk 0:01:32]}  Rg8 {[%clk 0:00:58]} 26. Kh3 {[%clk 0:01:31]}  Rg4 {[%clk 0:00:45]} 27. Rd2 {[%clk 0:01:07]}  Ke6 {[%clk 0:00:44]} 28. Re2 {[%clk 0:01:03]}  Rd4 {[%clk 0:00:35]} 29. Nc3 {[%clk 0:00:57]}  Kf6 {[%clk 0:00:28]} 30. Ne4+ {[%clk 0:00:39]}  Kg6 {[%clk 0:00:27]} 31. Nd2 {[%clk 0:00:37]}  Bf6 {[%clk 0:00:27]} 32. Nf1 {[%clk 0:00:29]}  e5 {[%clk 0:00:20]} 33. Rd2 {[%clk 0:00:25]}  Rxd2 {[%clk 0:00:19]} 34. Nxd2 {[%clk 0:00:25]}  e4 {[%clk 0:00:20]} 35. Re3 {[%clk 0:00:25]}  Bd4 {[%clk 0:00:20]} 36. Re2 {[%clk 0:00:25]}  Kf6 {[%clk 0:00:20]} 37. f3 {[%clk 0:00:22]}  exf3 {[%clk 0:00:20]} 38. Nxf3 {[%clk 0:00:22]}  Be5 {[%clk 0:00:19]} 39. c5 {[%clk 0:00:21]}  a5 {[%clk 0:00:11]} 40. cxd6 {[%clk 0:00:20]}  Bxd6 {[%clk 0:00:11]} 41. Rc2 {[%clk 0:00:21]}  f4 {[%clk 0:00:11]} 42. Rxc6 {[%clk 0:00:18]}  Ke7 {[%clk 0:00:10]} 43. gxf4 {[%clk 0:00:14]}  Rd5 {[%clk 0:00:11]} 44. Ra6 {[%clk 0:00:10]}  Rd3 {[%clk 0:00:10]} 45. Kg3 {[%clk 0:00:10]}  Rd5 {[%clk 0:00:08]} 46. Ne5 {[%clk 0:00:09]}  Bxe5 {[%clk 0:00:08]} 47. fxe5 {[%clk 0:00:10]}  Rxe5 {[%clk 0:00:09]} 48. Rxh6 {[%clk 0:00:10]}  Rc5 {[%clk 0:00:09]} 49. Rb6 {[%clk 0:00:09]}  Rc2 {[%clk 0:00:10]} 50. a4 {[%clk 0:00:10]}  Rc5 {[%clk 0:00:09]} 51. Rb5 {[%clk 0:00:10]}  Rc3+ {[%clk 0:00:10]} 52. Kg4 {[%clk 0:00:09]}  Kf6 {[%clk 0:00:10]} 53. h5 {[%clk 0:00:08]}  Kg7 {[%clk 0:00:10]} 54. Rb7+ {[%clk 0:00:08]}  Kh6 {[%clk 0:00:10]} 55. Rb6+ {[%clk 0:00:08]}  Kh7 {[%clk 0:00:10]} 56. h6 {[%clk 0:00:08]}  Rd3 {[%clk 0:00:09]} 57. Kf4 {[%clk 0:00:09]}  Rh3 {[%clk 0:00:08]} 58. Ke4 {[%clk 0:00:09]}  Rh4+ {[%clk 0:00:08]} 59. Kd5 {[%clk 0:00:09]}  Rh5+ {[%clk 0:00:08]} 60. Kc4 {[%clk 0:00:10]}  Re5 {[%clk 0:00:08]} 61. Rb5 {[%clk 0:00:09]}  Re4+ {[%clk 0:00:08]} 62. Kc3 {[%clk 0:00:09]}  Re3+ {[%clk 0:00:08]} 63. Kb2 {[%clk 0:00:09]}  Re2+ {[%clk 0:00:07]} 64. Ka3 {[%clk 0:00:10]}  Re6 {[%clk 0:00:06]} 65. Rxa5 {[%clk 0:00:10]}  Kxh6 {[%clk 0:00:06]} 66. Rf5 {[%clk 0:00:10]}  Kg6 {[%clk 0:00:07]} 67. Rf1 {[%clk 0:00:11]}  Re2 {[%clk 0:00:07]} 68. a5 {[%clk 0:00:11]}  Kg7 {[%clk 0:00:07]} 69. Kb4 {[%clk 0:00:09]}  Re5 {[%clk 0:00:07]} 70. a6 {[%clk 0:00:09]}  Re6 {[%clk 0:00:06]} 71. Ka5 {[%clk 0:00:09]}  Re5+ {[%clk 0:00:07]} 72. Kb4 {[%clk 0:00:07]}  Re6 {[%clk 0:00:06]} 73. Ra1 {[%clk 0:00:07]}  Re8 {[%clk 0:00:06]} 74. Kb5 {[%clk 0:00:07]}  Ra8 {[%clk 0:00:07]} 75. Kb6 {[%clk 0:00:07]}  Kf7 {[%clk 0:00:08]} 76. Kb7 {[%clk 0:00:07]}  Re8 {[%clk 0:00:06]} 77. a7 {[%clk 0:00:08]} 1-0


[Site "https://www.chess.com"]

[Event "Titled Tuesday Blitz May 16 Early 2023"]
[White "Karthik Sai Ch"]
[Black "surrenderPLS"]
[WhiteFideId "46649484"]
[WhiteElo "2003"]
[BlackElo "2513"]
[Result "0-1"]
[Round "04"]
[TimeControl "180+2"]
[Date "2023.05.16"]
[WhiteClock "0:00:00"]
[BlackClock "0:00:19"]

1. e4 {[%clk 0:02:59]}  c5 {[%clk 0:02:59]} 2. Nf3 {[%clk 0:02:57]}  d6 {[%clk 0:02:59]} 3. d4 {[%clk 0:02:56]}  cxd4 {[%clk 0:03:00]} 4. Qxd4 {[%clk 0:02:55]}  Nc6 {[%clk 0:02:59]} 5. Qd2 {[%clk 0:02:55]}  g6 {[%clk 0:02:58]} 6. Be2 {[%clk 0:02:47]}  Nf6 {[%clk 0:02:54]} 7. Bd3 {[%clk 0:02:38]}  Bg7 {[%clk 0:02:50]} 8. O-O {[%clk 0:02:37]}  O-O {[%clk 0:02:49]} 9. h3 {[%clk 0:02:35]}  b6 {[%clk 0:02:40]} 10. c4 {[%clk 0:02:32]}  Bb7 {[%clk 0:02:40]} 11. Nc3 {[%clk 0:02:31]}  Rc8 {[%clk 0:02:39]} 12. b3 {[%clk 0:02:28]}  Nb4 {[%clk 0:02:34]} 13. Bb2 {[%clk 0:02:24]}  Nxd3 {[%clk 0:02:33]} 14. Qxd3 {[%clk 0:02:25]}  Nxe4 {[%clk 0:02:32]} 15. Rfe1 {[%clk 0:02:15]}  Nxc3 {[%clk 0:02:29]} 16. Bxc3 {[%clk 0:02:16]}  Bxc3 {[%clk 0:02:29]} 17. Qxc3 {[%clk 0:02:17]}  b5 {[%clk 0:02:29]} 18. Qb4 {[%clk 0:02:14]}  Bxf3 {[%clk 0:02:23]} 19. gxf3 {[%clk 0:02:11]}  bxc4 {[%clk 0:02:23]} 20. bxc4 {[%clk 0:02:11]}  Qd7 {[%clk 0:02:24]} 21. Kg2 {[%clk 0:02:10]}  Rc5 {[%clk 0:02:23]} 22. Re4 {[%clk 0:02:08]}  h5 {[%clk 0:02:21]} 23. Rd1 {[%clk 0:02:07]}  Rg5+ {[%clk 0:02:19]} 24. Kh2 {[%clk 0:02:06]}  a5 {[%clk 0:02:09]} 25. Qd2 {[%clk 0:02:00]}  Rf5 {[%clk 0:02:08]} 26. Qe3 {[%clk 0:01:57]}  e6 {[%clk 0:02:06]} 27. Red4 {[%clk 0:01:51]}  Qc6 {[%clk 0:01:46]} 28. Kg2 {[%clk 0:01:23]}  Rd8 {[%clk 0:01:44]} 29. Qe4 {[%clk 0:01:19]}  d5 {[%clk 0:01:40]} 30. cxd5 {[%clk 0:01:16]}  Rfxd5 {[%clk 0:01:41]} 31. Rxd5 {[%clk 0:01:10]}  Rxd5 {[%clk 0:01:42]} 32. Rxd5 {[%clk 0:01:04]}  Qxd5 {[%clk 0:01:43]} 33. Qa4 {[%clk 0:01:03]}  Kg7 {[%clk 0:01:41]} 34. Qa3 {[%clk 0:00:59]}  Qg5+ {[%clk 0:01:39]} 35. Kf1 {[%clk 0:00:58]}  Qf5 {[%clk 0:01:35]} 36. Kg2 {[%clk 0:00:57]}  h4 {[%clk 0:01:28]} 37. Qc3+ {[%clk 0:00:53]}  Kh7 {[%clk 0:01:27]} 38. Qd4 {[%clk 0:00:51]}  g5 {[%clk 0:01:24]} 39. a4 {[%clk 0:00:41]}  Qf4 {[%clk 0:01:16]} 40. Qxf4 {[%clk 0:00:26]}  gxf4 {[%clk 0:01:15]} 41. Kf1 {[%clk 0:00:26]}  f5 {[%clk 0:00:53]} 42. Ke2 {[%clk 0:00:25]}  Kg7 {[%clk 0:00:53]} 43. Kd3 {[%clk 0:00:24]}  Kf7 {[%clk 0:00:53]} 44. Kc4 {[%clk 0:00:23]}  Kf6 {[%clk 0:00:50]} 45. Kc5 {[%clk 0:00:23]}  Ke5 {[%clk 0:00:48]} 46. Kb5 {[%clk 0:00:22]}  Kd5 {[%clk 0:00:48]} 47. Kxa5 {[%clk 0:00:22]}  Kc5 {[%clk 0:00:46]} 48. Ka6 {[%clk 0:00:22]}  e5 {[%clk 0:00:45]} 49. a5 {[%clk 0:00:21]}  Kc6 {[%clk 0:00:45]} 50. Ka7 {[%clk 0:00:21]}  e4 {[%clk 0:00:44]} 51. fxe4 {[%clk 0:00:15]}  fxe4 {[%clk 0:00:45]} 52. a6 {[%clk 0:00:13]}  Kc7 {[%clk 0:00:39]} 53. Ka8 {[%clk 0:00:13]}  e3 {[%clk 0:00:30]} 54. fxe3 {[%clk 0:00:13]}  fxe3 {[%clk 0:00:31]} 55. a7 {[%clk 0:00:11]}  Kd6 {[%clk 0:00:28]} 56. Kb7 {[%clk 0:00:10]}  e2 {[%clk 0:00:29]} 57. a8=Q {[%clk 0:00:10]}  e1=Q {[%clk 0:00:29]} 58. Qd8+ {[%clk 0:00:09]}  Kc5 {[%clk 0:00:27]} 59. Qb6+ {[%clk 0:00:08]}  Kc4 {[%clk 0:00:27]} 60. Qc6+ {[%clk 0:00:08]}  Kd3 {[%clk 0:00:27]} 61. Qd5+ {[%clk 0:00:08]}  Ke2 {[%clk 0:00:26]} 62. Qe4+ {[%clk 0:00:08]}  Kf1 {[%clk 0:00:26]} 63. Qh1+ {[%clk 0:00:07]}  Kf2 {[%clk 0:00:25]} 64. Qh2+ {[%clk 0:00:04]}  Kf3 {[%clk 0:00:25]} 65. Qd6 {[%clk 0:00:03]}  Qg3 {[%clk 0:00:19]} 66. Qf6+ {[%clk 0:00:00]}  Kg2 {[%clk 0:00:19]} 0-1


[Site "https://www.chess.com"]

[Event "Titled Tuesday Blitz May 16 Early 2023"]
[White "Llanos, Guillermo"]
[Black "Santos Flores, Alberto"]
[WhiteFideId "100358"]
[BlackFideId "3601234"]
[WhiteElo "2225"]
[BlackElo "2235"]
[Result "0-1"]
[Round "04"]
[TimeControl "180+2"]
[Date "2023.05.16"]
[WhiteClock "0:00:00"]
[BlackClock "0:01:04"]

1. Nf3 {[%clk 0:03:00]}  c5 {[%clk 0:02:59]} 2. b3 {[%clk 0:03:00]}  g6 {[%clk 0:02:58]} 3. Bb2 {[%clk 0:03:00]}  Nf6 {[%clk 0:02:58]} 4. g3 {[%clk 0:02:59]}  Bg7 {[%clk 0:02:58]} 5. Bg2 {[%clk 0:02:59]}  O-O {[%clk 0:02:59]} 6. O-O {[%clk 0:02:59]}  Nc6 {[%clk 0:02:58]} 7. c4 {[%clk 0:02:58]}  b6 {[%clk 0:02:55]} 8. d4 {[%clk 0:02:58]}  cxd4 {[%clk 0:02:54]} 9. Nxd4 {[%clk 0:02:58]}  Bb7 {[%clk 0:02:54]} 10. Nc2 {[%clk 0:02:42]}  Qc7 {[%clk 0:02:49]} 11. Nc3 {[%clk 0:02:41]}  Rac8 {[%clk 0:02:46]} 12. Rc1 {[%clk 0:02:40]}  Qb8 {[%clk 0:02:44]} 13. e4 {[%clk 0:02:39]}  a6 {[%clk 0:02:42]} 14. Qe2 {[%clk 0:02:23]}  d6 {[%clk 0:02:38]} 15. Rfd1 {[%clk 0:02:02]}  a5 {[%clk 0:02:24]} 16. a4 {[%clk 0:01:50]}  Nb4 {[%clk 0:02:15]} 17. Ne3 {[%clk 0:01:47]}  Nd7 {[%clk 0:02:10]} 18. Bh3 {[%clk 0:01:36]}  Rcd8 {[%clk 0:02:03]} 19. Ned5 {[%clk 0:01:21]}  Nxd5 {[%clk 0:02:03]} 20. exd5 {[%clk 0:01:13]}  Nc5 {[%clk 0:02:01]} 21. Qc2 {[%clk 0:01:06]}  Bc8 {[%clk 0:02:01]} 22. Bxc8 {[%clk 0:01:04]}  Rxc8 {[%clk 0:02:02]} 23. Nb5 {[%clk 0:00:53]}  Bxb2 {[%clk 0:01:50]} 24. Qxb2 {[%clk 0:00:53]}  Qb7 {[%clk 0:01:47]} 25. Rc3 {[%clk 0:00:42]}  Qd7 {[%clk 0:01:42]} 26. Re3 {[%clk 0:00:40]}  Rfe8 {[%clk 0:01:41]} 27. Qe2 {[%clk 0:00:35]}  Rcd8 {[%clk 0:01:36]} 28. Kg2 {[%clk 0:00:27]}  e5 {[%clk 0:01:26]} 29. dxe6 {[%clk 0:00:26]}  Rxe6 {[%clk 0:01:27]} 30. Rxe6 {[%clk 0:00:19]}  Qxe6 {[%clk 0:01:27]} 31. Qxe6 {[%clk 0:00:19]}  fxe6 {[%clk 0:01:25]} 32. Rxd6 {[%clk 0:00:19]}  Rxd6 {[%clk 0:01:24]} 33. Nxd6 {[%clk 0:00:19]}  Nxb3 {[%clk 0:01:24]} 34. Nc8 {[%clk 0:00:19]}  Nc5 {[%clk 0:01:16]} 35. Nxb6 {[%clk 0:00:18]}  Kf7 {[%clk 0:01:17]} 36. Kf3 {[%clk 0:00:17]}  e5 {[%clk 0:01:16]} 37. Ke3 {[%clk 0:00:16]}  Ke6 {[%clk 0:01:16]} 38. f4 {[%clk 0:00:16]}  exf4+ {[%clk 0:01:11]} 39. gxf4 {[%clk 0:00:16]}  Kd6 {[%clk 0:01:12]} 40. h4 {[%clk 0:00:14]}  Kc6 {[%clk 0:01:12]} 41. Nd5 {[%clk 0:00:14]}  Nxa4 {[%clk 0:01:12]} 42. Nf6 {[%clk 0:00:14]}  h5 {[%clk 0:01:11]} 43. Ng8 {[%clk 0:00:12]}  Kc5 {[%clk 0:01:10]} 44. Ne7 {[%clk 0:00:09]}  Nb6 {[%clk 0:01:09]} 45. Nxg6 {[%clk 0:00:09]}  Nxc4+ {[%clk 0:01:08]} 46. Kd3 {[%clk 0:00:09]}  Nd6 {[%clk 0:01:07]} 47. Ne5 {[%clk 0:00:08]}  Nf5 {[%clk 0:01:06]} 48. Nf3 {[%clk 0:00:07]}  Kd5 {[%clk 0:01:04]} 49. Kc3 {[%clk 0:00:00]}  Ke4 {[%clk 0:01:04]} 0-1


[Site "https://www.chess.com"]

[Event "Titled Tuesday Blitz May 16 Early 2023"]
[White "drdaro"]
[Black "Lehtosaari, Mauri"]
[BlackFideId "501999"]
[WhiteElo "2339"]
[BlackElo "2507"]
[Result "1/2-1/2"]
[Round "04"]
[TimeControl "180+2"]
[Date "2023.05.16"]
[WhiteClock "0:00:11"]
[BlackClock "0:00:35"]

1. d3 {[%clk 0:03:00]}  d5 {[%clk 0:02:57]} 2. g3 {[%clk 0:03:00]}  e6 {[%clk 0:02:56]} 3. Bg2 {[%clk 0:03:01]}  Nf6 {[%clk 0:02:57]} 4. Nf3 {[%clk 0:03:01]}  Be7 {[%clk 0:02:57]} 5. O-O {[%clk 0:03:01]}  O-O {[%clk 0:02:58]} 6. c4 {[%clk 0:03:01]}  b6 {[%clk 0:02:57]} 7. cxd5 {[%clk 0:03:01]}  exd5 {[%clk 0:02:58]} 8. Nc3 {[%clk 0:02:56]}  Bb7 {[%clk 0:02:58]} 9. Bd2 {[%clk 0:02:55]}  c5 {[%clk 0:02:57]} 10. d4 {[%clk 0:02:55]}  Nc6 {[%clk 0:02:56]} 11. Bg5 {[%clk 0:02:51]}  c4 {[%clk 0:02:52]} 12. Ne5 {[%clk 0:02:45]}  Ne4 {[%clk 0:02:31]} 13. Bxe7 {[%clk 0:02:37]}  Nxe7 {[%clk 0:02:29]} 14. Nxe4 {[%clk 0:02:30]}  dxe4 {[%clk 0:02:29]} 15. Nxc4 {[%clk 0:02:31]}  Nf5 {[%clk 0:02:21]} 16. e3 {[%clk 0:02:30]}  Nd6 {[%clk 0:02:17]} 17. Nxd6 {[%clk 0:02:07]}  Qxd6 {[%clk 0:02:18]} 18. Qb3 {[%clk 0:02:06]}  Bd5 {[%clk 0:02:17]} 19. Qa4 {[%clk 0:01:50]}  Bc6 {[%clk 0:02:11]} 20. Qc2 {[%clk 0:01:46]}  Rac8 {[%clk 0:02:01]} 21. Rfc1 {[%clk 0:01:28]}  f5 {[%clk 0:01:58]} 22. a4 {[%clk 0:01:18]}  Qb4 {[%clk 0:01:51]} 23. Qc3 {[%clk 0:01:14]}  Qxc3 {[%clk 0:01:35]} 24. Rxc3 {[%clk 0:01:15]}  Bd7 {[%clk 0:01:36]} 25. Bf1 {[%clk 0:01:12]}  Rxc3 {[%clk 0:01:22]} 26. bxc3 {[%clk 0:01:13]}  Rc8 {[%clk 0:01:23]} 27. Ra3 {[%clk 0:00:56]}  Kf7 {[%clk 0:01:19]} 28. Bb5 {[%clk 0:00:52]}  Be6 {[%clk 0:01:14]} 29. Kf1 {[%clk 0:00:48]}  Ke7 {[%clk 0:01:14]} 30. Ke2 {[%clk 0:00:48]}  Kd6 {[%clk 0:01:11]} 31. Kd2 {[%clk 0:00:49]}  g5 {[%clk 0:01:11]} 32. a5 {[%clk 0:00:45]}  f4 {[%clk 0:00:55]} 33. axb6 {[%clk 0:00:36]}  axb6 {[%clk 0:00:56]} 34. gxf4 {[%clk 0:00:25]}  gxf4 {[%clk 0:00:56]} 35. exf4 {[%clk 0:00:26]}  Rg8 {[%clk 0:00:53]} 36. Ke3 {[%clk 0:00:18]}  Rg2 {[%clk 0:00:52]} 37. Ra6 {[%clk 0:00:16]}  Kc7 {[%clk 0:00:47]} 38. Ra7+ {[%clk 0:00:16]}  Kd6 {[%clk 0:00:47]} 39. Rxh7 {[%clk 0:00:16]}  Rg1 {[%clk 0:00:47]} 40. Kxe4 {[%clk 0:00:15]}  Re1+ {[%clk 0:00:41]} 41. Kf3 {[%clk 0:00:15]}  Bd5+ {[%clk 0:00:40]} 42. Kg3 {[%clk 0:00:11]}  Rg1+ {[%clk 0:00:39]} 43. Kh4 {[%clk 0:00:11]}  Be6 {[%clk 0:00:38]} 44. Rh6 {[%clk 0:00:11]}  Ke7 {[%clk 0:00:34]} 45. Rh7+ {[%clk 0:00:10]}  Kf6 {[%clk 0:00:34]} 46. Rh6+ {[%clk 0:00:11]}  Ke7 {[%clk 0:00:34]} 47. Rh7+ {[%clk 0:00:10]}  Kf6 {[%clk 0:00:35]} 48. Rh6+ {[%clk 0:00:11]}  Ke7 {[%clk 0:00:35]} 1/2-1/2


[Site "https://www.chess.com"]

[Event "Titled Tuesday Blitz May 16 Early 2023"]
[White "Ronka, Erik"]
[Black "Korpics, Zsolt"]
[WhiteFideId "505080"]
[BlackFideId "705241"]
[WhiteElo "2264"]
[BlackElo "2332"]
[Result "1-0"]
[Round "04"]
[TimeControl "180+2"]
[Date "2023.05.16"]
[WhiteClock "0:00:36"]
[BlackClock "0:00:00"]

1. d4 {[%clk 0:03:00]}  Nf6 {[%clk 0:02:59]} 2. c4 {[%clk 0:03:00]}  e6 {[%clk 0:02:59]} 3. Nc3 {[%clk 0:02:58]}  Bb4 {[%clk 0:02:59]} 4. a3 {[%clk 0:02:58]}  Bxc3+ {[%clk 0:02:59]} 5. bxc3 {[%clk 0:02:59]}  O-O {[%clk 0:02:57]} 6. f3 {[%clk 0:02:59]}  d5 {[%clk 0:02:55]} 7. cxd5 {[%clk 0:03:00]}  exd5 {[%clk 0:02:55]} 8. e3 {[%clk 0:03:00]}  Bf5 {[%clk 0:02:39]} 9. Ne2 {[%clk 0:03:00]}  Re8 {[%clk 0:02:38]} 10. g4 {[%clk 0:02:59]}  Bg6 {[%clk 0:02:37]} 11. Ng3 {[%clk 0:02:58]}  c5 {[%clk 0:02:29]} 12. h4 {[%clk 0:02:56]}  h5 {[%clk 0:02:12]} 13. g5 {[%clk 0:02:55]}  Qd6 {[%clk 0:02:07]} 14. Kf2 {[%clk 0:02:54]}  Nfd7 {[%clk 0:01:58]} 15. Bd3 {[%clk 0:02:52]}  Bxd3 {[%clk 0:01:53]} 16. Qxd3 {[%clk 0:02:53]}  g6 {[%clk 0:01:53]} 17. Kg2 {[%clk 0:02:43]}  Nc6 {[%clk 0:01:46]} 18. Bd2 {[%clk 0:02:41]}  Na5 {[%clk 0:01:44]} 19. Rae1 {[%clk 0:02:40]}  Nc4 {[%clk 0:01:42]} 20. Bc1 {[%clk 0:02:39]}  b5 {[%clk 0:01:37]} 21. e4 {[%clk 0:02:38]}  cxd4 {[%clk 0:01:19]} 22. cxd4 {[%clk 0:02:39]}  Rac8 {[%clk 0:01:11]} 23. e5 {[%clk 0:02:36]}  Qe6 {[%clk 0:01:03]} 24. f4 {[%clk 0:02:35]}  Qg4 {[%clk 0:01:01]} 25. f5 {[%clk 0:02:33]}  gxf5 {[%clk 0:00:56]} 26. Ref1 {[%clk 0:02:30]}  Ndxe5 {[%clk 0:00:22]} 27. dxe5 {[%clk 0:02:28]}  Nxe5 {[%clk 0:00:22]} 28. Qd1 {[%clk 0:01:57]}  Qc4 {[%clk 0:00:16]} 29. Nxf5 {[%clk 0:01:53]}  Qe4+ {[%clk 0:00:16]} 30. Kg1 {[%clk 0:01:37]}  Ng4 {[%clk 0:00:17]} 31. Nd6 {[%clk 0:01:06]}  Qe5 {[%clk 0:00:13]} 32. Bf4 {[%clk 0:01:06]}  Qb2 {[%clk 0:00:04]} 33. Nxc8 {[%clk 0:00:52]}  Re2 {[%clk 0:00:04]} 34. Qxd5 {[%clk 0:00:46]}  Qxa3 {[%clk 0:00:00]} 35. g6 {[%clk 0:00:36]} 1-0


[Site "https://www.chess.com"]

[Event "Titled Tuesday Blitz May 16 Early 2023"]
[White "Allahverdiyeva, Ayan"]
[Black "Mayeregger, Arnold"]
[WhiteFideId "13412590"]
[BlackFideId "3705226"]
[WhiteElo "1980"]
[BlackElo "2038"]
[Result "0-1"]
[Round "04"]
[TimeControl "180+2"]
[Date "2023.05.16"]
[WhiteClock "0:00:54"]
[BlackClock "0:01:04"]

1. e4 {[%clk 0:02:55]}  c5 {[%clk 0:02:57]} 2. Nf3 {[%clk 0:02:54]}  Nc6 {[%clk 0:02:57]} 3. d4 {[%clk 0:02:54]}  cxd4 {[%clk 0:02:58]} 4. Nxd4 {[%clk 0:02:55]}  Nf6 {[%clk 0:02:58]} 5. Nc3 {[%clk 0:02:55]}  e5 {[%clk 0:02:58]} 6. Ndb5 {[%clk 0:02:55]}  d6 {[%clk 0:02:57]} 7. Bg5 {[%clk 0:02:56]}  a6 {[%clk 0:02:57]} 8. Na3 {[%clk 0:02:57]}  b5 {[%clk 0:02:56]} 9. Nd5 {[%clk 0:02:58]}  Be7 {[%clk 0:02:56]} 10. Bxf6 {[%clk 0:02:58]}  Bxf6 {[%clk 0:02:57]} 11. c3 {[%clk 0:02:59]}  O-O {[%clk 0:02:57]} 12. h4 {[%clk 0:02:59]}  g6 {[%clk 0:02:56]} 13. Nc2 {[%clk 0:02:59]}  Rb8 {[%clk 0:02:56]} 14. h5 {[%clk 0:02:57]}  Bg5 {[%clk 0:02:51]} 15. Nce3 {[%clk 0:02:57]}  Ne7 {[%clk 0:02:47]} 16. hxg6 {[%clk 0:02:51]}  hxg6 {[%clk 0:02:47]} 17. Qf3 {[%clk 0:02:43]}  Nxd5 {[%clk 0:02:46]} 18. Nxd5 {[%clk 0:02:43]}  Kg7 {[%clk 0:02:45]} 19. Bd3 {[%clk 0:02:25]}  Be6 {[%clk 0:02:37]} 20. Ne3 {[%clk 0:02:04]}  b4 {[%clk 0:02:31]} 21. c4 {[%clk 0:02:03]}  b3 {[%clk 0:02:30]} 22. a3 {[%clk 0:02:01]}  Qa5+ {[%clk 0:02:29]} 23. Ke2 {[%clk 0:01:59]}  Qc5 {[%clk 0:02:20]} 24. Nf5+ {[%clk 0:01:43]}  Bxf5 {[%clk 0:02:17]} 25. exf5 {[%clk 0:01:41]}  Qd4 {[%clk 0:02:16]} 26. Qe4 {[%clk 0:01:25]}  Qxb2+ {[%clk 0:02:13]} 27. Kf3 {[%clk 0:01:26]}  Rh8 {[%clk 0:02:00]} 28. Kg4 {[%clk 0:01:22]}  Qxf2 {[%clk 0:01:05]} 29. Kxg5 {[%clk 0:00:54]}  Qg3+ {[%clk 0:01:04]} 0-1


[Site "https://www.chess.com"]

[Event "Titled Tuesday Blitz May 16 Early 2023"]
[White "Shapiro, Viktor"]
[Black "Onslow, Alfie"]
[WhiteFideId "4175700"]
[BlackFideId "436976"]
[WhiteElo "2152"]
[BlackElo "2114"]
[Result "0-1"]
[Round "04"]
[TimeControl "180+2"]
[Date "2023.05.16"]
[WhiteClock "0:01:02"]
[BlackClock "0:00:02"]

1. Nf3 {[%clk 0:03:00]}  c5 {[%clk 0:02:59]} 2. c4 {[%clk 0:03:01]}  Nf6 {[%clk 0:02:58]} 3. Nc3 {[%clk 0:03:01]}  Nc6 {[%clk 0:02:58]} 4. g3 {[%clk 0:03:01]}  d5 {[%clk 0:02:55]} 5. cxd5 {[%clk 0:03:02]}  Nxd5 {[%clk 0:02:55]} 6. Bg2 {[%clk 0:03:03]}  g6 {[%clk 0:02:55]} 7. O-O {[%clk 0:03:02]}  Bg7 {[%clk 0:02:54]} 8. Ng5 {[%clk 0:03:03]}  Nb6 {[%clk 0:02:32]} 9. d3 {[%clk 0:03:00]}  O-O {[%clk 0:02:30]} 10. h4 {[%clk 0:02:58]}  Bg4 {[%clk 0:02:23]} 11. Be3 {[%clk 0:02:40]}  Nd4 {[%clk 0:02:20]} 12. Rc1 {[%clk 0:02:33]}  Qd7 {[%clk 0:02:08]} 13. f3 {[%clk 0:02:27]}  Be6 {[%clk 0:01:55]} 14. b3 {[%clk 0:02:14]}  Nd5 {[%clk 0:01:44]} 15. Nxd5 {[%clk 0:02:12]}  Bxd5 {[%clk 0:01:15]} 16. Rxc5 {[%clk 0:02:03]}  Rac8 {[%clk 0:01:15]} 17. Rxc8 {[%clk 0:01:50]}  Rxc8 {[%clk 0:01:14]} 18. Bf2 {[%clk 0:01:46]}  Rc2 {[%clk 0:01:05]} 19. e3 {[%clk 0:01:44]}  Ne2+ {[%clk 0:01:05]} 20. Kh2 {[%clk 0:01:44]}  Rxa2 {[%clk 0:01:02]} 21. d4 {[%clk 0:01:33]}  Nc3 {[%clk 0:00:19]} 22. Qd3 {[%clk 0:01:33]}  h6 {[%clk 0:00:13]} 23. Qxc3 {[%clk 0:01:14]}  hxg5 {[%clk 0:00:13]} 24. hxg5 {[%clk 0:01:14]}  Qb5 {[%clk 0:00:06]} 25. Rb1 {[%clk 0:01:12]}  Rxf2 {[%clk 0:00:05]} 26. e4 {[%clk 0:01:12]}  Bc6 {[%clk 0:00:05]} 27. d5 {[%clk 0:01:11]}  Bd7 {[%clk 0:00:05]} 28. Qc7 {[%clk 0:01:09]}  Qe2 {[%clk 0:00:05]} 29. Rg1 {[%clk 0:01:07]}  Bb5 {[%clk 0:00:04]} 30. Qxe7 {[%clk 0:01:06]}  Bf8 {[%clk 0:00:03]} 31. Qd8 {[%clk 0:01:06]}  Bd3 {[%clk 0:00:03]} 32. d6 {[%clk 0:01:02]}  Bxe4 {[%clk 0:00:02]} 33. fxe4 {[%clk 0:01:02]}  Qh5# {[%clk 0:00:02]} 0-1


[Site "https://www.chess.com"]

[Event "Titled Tuesday Blitz May 16 Early 2023"]
[White "Golubev, Mikhail"]
[Black "Marcziter, Dmitrii"]
[WhiteFideId "14100983"]
[BlackFideId "13900765"]
[WhiteElo "2374"]
[BlackElo "2162"]
[Result "1-0"]
[Round "04"]
[TimeControl "180+2"]
[Date "2023.05.16"]
[WhiteClock "0:00:25"]
[BlackClock "0:00:58"]

1. e4 {[%clk 0:03:00]}  e5 {[%clk 0:02:59]} 2. Nf3 {[%clk 0:03:01]}  Nc6 {[%clk 0:02:58]} 3. Bc4 {[%clk 0:03:01]}  Nf6 {[%clk 0:02:57]} 4. Ng5 {[%clk 0:03:00]}  d5 {[%clk 0:02:56]} 5. exd5 {[%clk 0:03:01]}  Na5 {[%clk 0:02:56]} 6. Bb5+ {[%clk 0:03:01]}  c6 {[%clk 0:02:56]} 7. dxc6 {[%clk 0:03:02]}  bxc6 {[%clk 0:02:57]} 8. Bd3 {[%clk 0:03:03]}  Nd5 {[%clk 0:02:53]} 9. Nf3 {[%clk 0:03:02]}  Nf4 {[%clk 0:02:50]} 10. O-O {[%clk 0:02:58]}  Nxd3 {[%clk 0:02:48]} 11. cxd3 {[%clk 0:02:58]}  Bd6 {[%clk 0:02:47]} 12. Re1 {[%clk 0:02:53]}  Bg4 {[%clk 0:02:31]} 13. b4 {[%clk 0:02:26]}  Nb7 {[%clk 0:02:27]} 14. Nxe5 {[%clk 0:02:19]}  Bxd1 {[%clk 0:02:20]} 15. Nxc6+ {[%clk 0:02:19]}  Kf8 {[%clk 0:02:09]} 16. Nxd8 {[%clk 0:02:18]}  Rxd8 {[%clk 0:02:08]} 17. Rxd1 {[%clk 0:02:17]}  Bxb4 {[%clk 0:02:08]} 18. Nc3 {[%clk 0:02:06]}  Rxd3 {[%clk 0:02:06]} 19. Rb1 {[%clk 0:02:03]}  a5 {[%clk 0:01:56]} 20. a3 {[%clk 0:01:54]}  Bxc3 {[%clk 0:01:54]} 21. Rxb7 {[%clk 0:01:35]}  Be5 {[%clk 0:01:50]} 22. Bb2 {[%clk 0:01:28]}  Bd6 {[%clk 0:01:37]} 23. Rc1 {[%clk 0:01:21]}  Be7 {[%clk 0:01:18]} 24. Rc8+ {[%clk 0:01:08]}  Rd8 {[%clk 0:01:16]} 25. Rxd8+ {[%clk 0:01:06]}  Bxd8 {[%clk 0:01:16]} 26. Rb8 {[%clk 0:01:00]}  Ke7 {[%clk 0:01:10]} 27. Bxg7 {[%clk 0:00:57]}  Rg8 {[%clk 0:01:10]} 28. Bc3 {[%clk 0:00:52]}  Rg5 {[%clk 0:01:08]} 29. h3 {[%clk 0:00:25]}  Rb5 {[%clk 0:00:58]} 30. Rxb5 {[%clk 0:00:25]} 1-0


[Site "https://www.chess.com"]